fUSD/lending_fUSD_20251023
["ID","MTS","AMOUNT","RATE_DAILY","PERIOD"]
[392152551,1761215439496,-500.0,0.00044889,120]
[392152552,1761215439505,-500.0,0.00044889,120]
[392152553,1761215439514,-500.0,0.00044889,120]
[392152554,1761215439524,-500.0,0.00044889,120]
[392152555,1761215439533,-502.14,0.00044889,120]
[392152556,1761215439543,-771.3,0.00044889,120]
[392152557,1761215439552,-778.16,0.00044889,120]
[392152558,1761215439562,-500.0,0.00044889,120]
[392152559,1761215439571,-500.0,0.00044889,2]
[392152560,1761215439581,-500.0,0.00044889,120]
[392152561,1761215439590,-500.0,0.00044889,120]
[392152562,1761215439600,-530.63,0.00044889,120]
[392152563,1761215439609,-500.0,0.00044889,120]
[392152564,1761215439619,-610.29,0.00044889,120]
[392152565,1761215439628,-784.38,0.00044889,120]
[392152566,1761215439638,-500.0,0.00044889,120]
[392152567,1761215439647,-500.0,0.00044889,120]
[392152568,1761215439656,-678.74,0.00044889,120]
[392152569,1761215439666,-500.0,0.00044889,120]
[392152570,1761215439675,-500.0,0.00044889,120]
[392152571,1761215439685,-500.0,0.00044889,120]
[392152572,1761215439695,-500.0,0.00044889,120]
[392152573,1761215439705,-500.0,0.00044889,120]
[392152574,1761215439714,-500.0,0.00044889,120]
[392152575,1761215439724,-500.0,0.00044889,120]
[392152576,1761215439732,-500.0,0.00044889,120]
[392152577,1761215439742,-500.0,0.00044889,120]
[392152578,1761215439751,-500.0,0.00044889,120]
[392152579,1761215439761,-500.0,0.00044889,120]
[392152580,1761215439773,-500.0,0.00044889,120]
[392152581,1761215439784,-500.0,0.00044889,120]
[392152582,1761215439793,-500.0,0.00044889,120]
[392152583,1761215439803,-500.0,0.00044889,120]
[392152584,1761215439814,-1033.58,0.00044889,120]
[392152585,1761215439825,-500.0,0.00044889,120]
[392152586,1761215439835,-547.68,0.00044889,120]
[392152587,1761215439845,-500.0,0.00044889,120]
[392152588,1761215439855,-96407.0500911,0.0004489,3]
[392152589,1761215439865,-81055.5242516,0.0004489,3]
[392152590,1761215439875,-390.96,0.00044892,2]
[392152591,1761215439885,-302.23339564,0.00044897,15]
[392152592,1761215439895,-500.0,0.00044898,120]
[392152593,1761215439904,-500.0,0.00044898,120]
[392152594,1761215439914,-500.0,0.00044898,120]
[392152595,1761215439923,-500.0,0.00044898,120]
[392152596,1761215439933,-500.0,0.00044898,120]
[392152597,1761215439942,-500.0,0.00044898,120]
[392152598,1761215439951,-500.0,0.00044898,120]
[392152599,1761215439960,-2082.71,0.00044898,120]
[392152600,1761215439969,-500.0,0.00044898,120]
[392152601,1761215439980,-1234.43,0.00044898,120]
[392152602,1761215439990,-500.0,0.00044898,120]
[392152603,1761215439998,-500.0,0.00044898,120]
[392152604,1761215440008,-500.0,0.00044898,120]
[392152605,1761215440017,-500.0,0.00044898,120]
[392152606,1761215440026,-500.0,0.00044898,120]
[392152607,1761215440036,-500.0,0.00044898,120]
[392152608,1761215440047,-1756.84,0.00044898,30]
[392152609,1761215440057,-500.0,0.00044898,120]
[392152610,1761215440066,-500.0,0.00044898,120]
[392152611,1761215440076,-500.0,0.00044898,120]
[392152612,1761215440085,-1062.87,0.00044898,120]
[392152613,1761215440095,-500.0,0.00044898,120]
[392152614,1761215440104,-500.0,0.00044898,120]
[392152615,1761215440114,-500.0,0.00044898,120]
[392152616,1761215440124,-1687.56,0.00044898,120]
[392152617,1761215440133,-500.0,0.00044898,120]
[392152618,1761215440143,-500.0,0.00044898,120]
[392152619,1761215440156,-5242.57,0.00044898,120]
[392152620,1761215440165,-301.70690505,0.00044899,2]
[392152621,1761215440176,-500.0,0.00044899,120]
[392152622,1761215440188,-500.0,0.00044899,120]
[392152623,1761215440199,-337.61165484,0.00044899,120]
[392152624,1761215440209,-500.0,0.00044899,120]
[392152625,1761215440219,-500.0,0.00044899,120]
[392152626,1761215440230,-500.0,0.00044899,120]
[392152627,1761215440239,-500.0,0.00044899,120]
[392152628,1761215440249,-163.74212952,0.00044899,120]
[392152629,1761215440259,-500.0,0.00044899,120]
[392152630,1761215440269,-500.0,0.00044899,120]
[392152631,1761215440279,-500.0,0.00044899,120]
[392152632,1761215440288,-500.0,0.00044899,30]
[392152633,1761215440298,-500.0,0.00044899,120]
[392152634,1761215440307,-500.0,0.00044899,120]
[392152635,1761215440318,-500.0,0.00044899,30]
[392152636,1761215440327,-500.0,0.00044899,120]
[392152637,1761215440336,-500.0,0.00044899,120]
[392152638,1761215440346,-202.70375635,0.00044899,7]
[392152639,1761215440355,-500.0,0.00044899,120]
[392152640,1761215440365,-404.41706389,0.00044899,120]
[392152641,1761215440376,-500.0,0.00044899,120]
[392152642,1761215440386,-500.0,0.00044899,120]
[392152643,1761215440396,-500.0,0.00044899,120]
[392152644,1761215440407,-1000.0,0.00044899,30]
[392152645,1761215440417,-500.0,0.00044899,120]
[392152646,1761215440429,-500.0,0.00044899,60]
[392152647,1761215440438,-500.0,0.00044899,120]
[392152648,1761215440448,-500.0,0.00044899,120]
[392152649,1761215440457,-500.0,0.00044899,120]
[392152650,1761215440467,-500.0,0.00044899,120]
[392152651,1761215440477,-500.0,0.00044899,120]
[392152652,1761215440488,-500.0,0.00044899,120]
[392152653,1761215440497,-500.0,0.00044899,120]
[392152654,1761215440507,-500.0,0.00044899,120]
[392152655,1761215440517,-500.0,0.00044899,120]
[392152656,1761215440526,-509.05,0.00044899,120]
[392152657,1761215440536,-500.0,0.00044899,120]
[392152658,1761215440545,-500.0,0.00044899,120]
[392152659,1761215440555,-500.0,0.00044899,120]
[392152660,1761215440565,-500.0,0.00044899,120]
[392152661,1761215440575,-657.77,0.00044899,120]
[392152662,1761215440699,-500.0,0.00044899,120]
[392152663,1761215440711,-500.0,0.00044899,120]
[392152664,1761215440721,-707.35,0.00044899,120]
[392152665,1761215440731,-627.72,0.00044899,120]
[392152666,1761215440742,-557.96,0.00044899,120]
[392152667,1761215440752,-500.0,0.00044899,120]
[392152668,1761215440761,-500.0,0.00044899,120]
[392152669,1761215440773,-500.0,0.00044899,120]
[392152670,1761215440782,-249.53737804,0.00044899,90]
[392152671,1761215440792,-500.0,0.00044899,120]
[392152672,1761215440801,-500.0,0.00044899,120]
[392152673,1761215440811,-292.42,0.00044899,7]
[392152674,1761215440821,-517.59894578,0.00044899,120]
[392152675,1761215440832,-500.0,0.00044899,120]
[392152676,1761215440842,-500.0,0.00044899,120]
[392152677,1761215440852,-500.0,0.00044899,2]
[392152678,1761215440862,-500.0,0.00044899,120]
[392152679,1761215440872,-839.17,0.00044899,120]
[392152680,1761215440882,-175.59634812,0.00044899,120]
[392152681,1761215440891,-500.0,0.00044899,120]
[392152682,1761215440901,-500.0,0.00044899,120]
[392152683,1761215440911,-500.0,0.00044899,120]
[392152684,1761215440920,-500.0,0.00044899,12]
[392152685,1761215440930,-500.0,0.00044899,120]
[392152686,1761215440939,-500.0,0.00044899,120]
[392152687,1761215440949,-500.0,0.00044899,120]
[392152688,1761215440959,-500.0,0.00044899,30]
[392152689,1761215440969,-500.0,0.00044899,120]
[392152690,1761215440979,-500.0,0.00044899,120]
[392152691,1761215440989,-500.0,0.00044899,120]
[392152692,1761215440998,-160.56398267,0.00044899,20]
[392152693,1761215441008,-500.0,0.00044899,120]
[392152694,1761215441018,-300.0,0.00044899,120]
[392152695,1761215441027,-500.0,0.00044899,120]
[392152696,1761215441037,-500.0,0.00044899,120]
[392152697,1761215441046,-500.0,0.00044899,120]
[392152698,1761215441056,-500.0,0.00044899,120]
[392152699,1761215441065,-500.0,0.00044899,120]
[392152700,1761215441075,-500.0,0.00044899,120]
[392152701,1761215441084,-532.5,0.00044899,120]
[392152702,1761215441094,-388.78162999,0.00044899,120]
[392152703,1761215441103,-542.71,0.00044899,120]
[392152704,1761215441113,-500.0,0.00044899,120]
[392152705,1761215441123,-1043.47,0.00044899,120]
[392152706,1761215441132,-673.9,0.00044899,120]
[392152707,1761215441142,-500.0,0.00044899,120]
[392152708,1761215441153,-551.78,0.00044899,120]
[392152709,1761215441164,-500.0,0.00044899,30]
[392152710,1761215441173,-500.0,0.00044899,120]
[392152711,1761215441182,-519.09,0.00044899,120]
[392152712,1761215441192,-536.64,0.00044899,120]
[392152713,1761215441203,-500.0,0.00044899,120]
[392152714,1761215441212,-500.0,0.00044899,120]
[392152715,1761215441223,-500.0,0.00044899,120]
[392152716,1761215441234,-500.0,0.00044899,120]
[392152717,1761215441243,-500.0,0.00044899,120]
[392152718,1761215441253,-500.0,0.00044899,120]
[392152719,1761215441262,-614.12,0.00044899,120]
[392152720,1761215441272,-500.0,0.00044899,120]
[392152721,1761215441283,-500.0,0.00044899,120]
[392152722,1761215441293,-743.22,0.00044899,120]
[392152723,1761215441303,-500.0,0.00044899,120]
[392152724,1761215441313,-500.0,0.00044899,120]
[392152725,1761215441323,-500.0,0.00044899,120]
[392152726,1761215441332,-500.0,0.00044899,120]
[392152727,1761215441342,-507.97,0.00044899,120]
[392152728,1761215441352,-500.0,0.00044899,120]
[392152729,1761215441362,-508.82861663,0.00044899,120]
[392152730,1761215441371,-500.0,0.00044899,120]
[392152731,1761215441381,-500.0,0.00044899,120]
[392152732,1761215441391,-508.86800937,0.00044899,120]
[392152733,1761215441400,-500.0,0.00044899,120]
[392152734,1761215441409,-500.0,0.00044899,120]
[392152735,1761215441419,-700.6,0.00044899,120]
[392152736,1761215441428,-500.0,0.00044899,120]
[392152737,1761215441437,-500.0,0.00044899,120]
[392152738,1761215441447,-500.0,0.00044899,120]
[392152739,1761215441456,-527.16668758,0.00044899,120]
[392152740,1761215441466,-1000.0,0.000449,2]
[392152741,1761215441476,-33148.5234,0.000449,2]
[392152742,1761215441486,-1108.6499,0.000449,2]
[392152743,1761215441496,-153950.8276,0.000449,2]
[392152744,1761215441505,-8764.27728101,0.00044901,3]
[392152745,1761215441516,-7368.68402287,0.00044901,3]
[392152746,1761215441526,-150.0,0.00044907,14]
[392152747,1761215441535,-1425.0,0.00044907,2]
[392152748,1761215441545,-1000.0,0.00044909,14]
[392152749,1761215441556,-150.0,0.00044911,14]
[392152750,1761215441566,-302.23339564,0.00044914,15]
[392152751,1761215441576,-1425.0,0.00044919,2]
[392152752,1761215441586,-150.0,0.0004492,14]
[392152753,1761215441596,-7368.68402287,0.0004492,3]
[392152754,1761215441606,-8764.27728101,0.00044921,3]
[392152755,1761215441616,-1425.0,0.00044927,2]
[392152756,1761215441626,-494.61771879,0.00044927,2]
[392152757,1761215441635,-2100.0,0.0004493,30]
[392152758,1761215441645,-500.0,0.00044931,120]
[392152759,1761215441654,-711.43,0.00044931,120]
[392152760,1761215441664,-649.94,0.00044931,120]
[392152761,1761215441674,-302.23339564,0.00044932,15]
[392152762,1761215441683,-1000.0,0.00044934,14]
[392152763,1761215441693,-8764.27728101,0.00044947,3]
[392152764,1761215441703,-7368.68402287,0.00044947,3]
[392152765,1761215441713,-1000.0,0.00044949,14]
[392152766,1761215441722,-302.23339564,0.0004495,15]
[392152767,1761215441732,-250.61395798,0.0004495,2]
[392152768,1761215441741,-3425.65011366,0.0004495,2]
[392152769,1761215441751,-206.7079046,0.0004495,2]
[392152770,1761215441761,-880.53064195,0.0004495,2]
[392152771,1761215441771,-151.17320606,0.00044955,120]
[392152772,1761215441782,-733.72005888,0.00044955,120]
[392152773,1761215441791,-3795.95132774,0.00044956,120]
[392152774,1761215441802,-193.55021194,0.00044957,120]
[392152775,1761215441812,-209.86972302,0.00044957,120]
[392152776,1761215441821,-150.0,0.00044957,14]
[392152777,1761215441831,-11442.87901404,0.00044957,120]
[392152778,1761215441842,-11442.87901404,0.00044957,120]
[392152779,1761215441853,-282.73598015,0.00044957,120]
[392152780,1761215441863,-1333.36674797,0.00044958,120]
[392152781,1761215441872,-591.26965968,0.00044959,120]
[392152782,1761215441881,-3795.95132774,0.00044959,120]
[392152783,1761215441891,-30986.0,0.00044959,120]
[392152784,1761215441900,-1226.0,0.00044959,120]
[392152785,1761215441910,-29474.7360915,0.0004496,3]
[392152786,1761215441919,-1333.36674797,0.00044961,120]
[392152787,1761215441929,-338.89750946,0.00044961,120]
[392152788,1761215441939,-155.19823163,0.00044961,120]
[392152789,1761215441948,-313.03126371,0.00044961,120]
[392152790,1761215441957,-338.89750946,0.00044962,120]
[392152791,1761215441967,-282.73598014,0.00044962,120]
[392152792,1761215441976,-7368.68402287,0.00044963,3]
[392152793,1761215441985,-150.0,0.00044963,14]
[392152794,1761215441995,-193.55021194,0.00044963,120]
[392152795,1761215442004,-405.51552655,0.00044964,120]
[392152796,1761215442014,-405.51552655,0.00044965,120]
[392152797,1761215442023,-733.72005888,0.00044965,120]
[392152798,1761215442033,-2798.21975351,0.00044965,120]
[392152799,1761215442042,-338.89750946,0.00044965,120]
[392152800,1761215442051,-338.89750946,0.00044966,120]
[392152801,1761215442061,-733.72005888,0.00044966,120]
[392152802,1761215442070,-432.31495266,0.00044966,120]
[392152803,1761215442079,-617.56020899,0.00044966,2]
[392152804,1761215442089,-1425.0,0.00044966,2]
[392152805,1761215442098,-232.08999593,0.00044967,120]
[392152806,1761215442107,-193.55021194,0.00044967,120]
[392152807,1761215442117,-232.08999593,0.00044968,120]
[392152808,1761215442126,-2798.21975351,0.00044968,120]
[392152809,1761215442135,-405.51552656,0.00044968,120]
[392152810,1761215442144,-3795.95132774,0.00044968,120]
[392152811,1761215442157,-591.26965968,0.00044968,120]
[392152812,1761215442167,-7368.68402287,0.00044969,3]
[392152813,1761215442177,-155.19823163,0.00044969,120]
[392152814,1761215442186,-405.51552655,0.00044969,120]
[392152815,1761215442195,-2798.21975351,0.0004497,120]
[392152816,1761215442205,-338.89750946,0.00044971,120]
[392152817,1761215442215,-1303.15404757,0.00044971,120]
[392152818,1761215442225,-193.29043803,0.00044971,120]
[392152819,1761215442234,-811.0310531,0.00044972,120]
[392152820,1761215442244,-1000.0,0.00044972,14]
[392152821,1761215442254,-282.73598015,0.00044972,120]
[392152822,1761215442263,-811.0310531,0.00044972,120]
[392152823,1761215442272,-193.55021194,0.00044972,120]
[392152824,1761215442282,-160.17732801,0.00044973,10]
[392152825,1761215442291,-500.0,0.00044973,10]
[392152826,1761215442301,-811.0310531,0.00044973,120]
[392152827,1761215442310,-150.0,0.00044973,3]
[392152828,1761215442319,-150.0,0.00044973,3]
[392152829,1761215442329,-150.0,0.00044973,3]
[392152830,1761215442339,-151.53552264,0.00044973,3]
[392152831,1761215442348,-284.4579475,0.00044973,3]
[392152832,1761215442358,-275.8417244,0.00044973,3]
[392152833,1761215442368,-150.0,0.00044973,2]
[392152834,1761215442377,-150.0,0.00044973,3]
[392152835,1761215442386,-500.0,0.00044973,120]
[392152836,1761215442396,-150.0,0.00044973,3]
[392152837,1761215442405,-150.0,0.00044973,3]
[392152838,1761215442415,-150.0,0.00044973,3]
[392152839,1761215442425,-150.0,0.00044973,3]
[392152840,1761215442434,-150.0,0.00044973,3]
[392152841,1761215442444,-150.0,0.00044973,3]
[392152842,1761215442453,-150.0,0.00044973,3]
[392152843,1761215442463,-150.0,0.00044973,3]
[392152844,1761215442472,-150.0,0.00044973,3]
[392152845,1761215442481,-150.0,0.00044973,3]
[392152846,1761215442490,-150.0,0.00044973,2]
[392152847,1761215442501,-500.0,0.00044973,3]
[392152848,1761215442511,-150.0,0.00044973,2]
[392152849,1761215442521,-150.0,0.00044973,3]
[392152850,1761215442531,-150.0,0.00044973,3]
[392152851,1761215442540,-193.29043803,0.00044973,120]
[392152852,1761215442550,-3795.95132774,0.00044974,120]
[392152853,1761215442559,-193.29043803,0.00044974,120]
[392152854,1761215442568,-405.51552655,0.00044975,120]
[392152855,1761215442578,-284.01813289,0.00044975,120]
[392152856,1761215442588,-7368.68402287,0.00044975,3]
[392152857,1761215442598,-284.01813289,0.00044975,120]
[392152858,1761215442607,-349.19602115,0.00044975,120]
[392152859,1761215442616,-11497.90404488,0.00044976,120]
[392152860,1761215442626,-1055.99055337,0.00044978,60]
[392152861,1761215442636,-1055.99055337,0.00044978,60]
[392152862,1761215442646,-1333.36674797,0.00044978,120]
[392152863,1761215442655,-232.08999593,0.00044978,120]
[392152864,1761215442666,-2798.21975351,0.00044978,120]
[392152865,1761215442675,-282.73598015,0.00044978,120]
[392152866,1761215442685,-338.89750946,0.00044979,120]
[392152867,1761215442695,-591.26965968,0.0004498,120]
[392152868,1761215442705,-500.0,0.0004498,120]
[392152869,1761215442715,-11497.90404488,0.0004498,120]
[392152870,1761215442724,-1000.0,0.0004498,120]
[392152871,1761215442733,-995.63702356,0.0004498,120]
[392152872,1761215442743,-500.0,0.0004498,120]
[392152873,1761215442753,-7368.68402287,0.0004498,3]
[392152874,1761215442763,-11442.87901404,0.0004498,120]
[392152875,1761215442773,-349.19602115,0.0004498,120]
[392152876,1761215442782,-2798.21975351,0.0004498,120]
[392152877,1761215442792,-591.26965968,0.00044981,120]
[392152879,1761215442801,-11497.90404488,0.00044981,120]
[392152881,1761215442811,-1000.0,0.00044981,14]
[392152882,1761215442821,-209.86972302,0.00044981,120]
[392152883,1761215442831,-155.19823163,0.00044982,120]
[392152884,1761215442840,-4066.77011352,0.00044983,120]
[392152885,1761215442850,-11442.87901404,0.00044983,120]
[392152886,1761215442859,-405.51552655,0.00044983,120]
[392152887,1761215442869,-29474.7360915,0.00044984,3]
[392152888,1761215442879,-150.32,0.00044984,2]
[392152889,1761215442888,-830.81545833,0.00044984,7]
[392152890,1761215442897,-151.97898848,0.00044984,14]
[392152891,1761215442907,-432.31495266,0.00044984,120]
[392152892,1761215442916,-3795.95132774,0.00044984,120]
[392152893,1761215442926,-432.31495266,0.00044984,120]
[392152894,1761215442935,-232.08999593,0.00044985,120]
[392152895,1761215442945,-4066.77011352,0.00044985,120]
[392152896,1761215442956,-260.91872561,0.00044985,120]
[392152897,1761215442965,-155.19823163,0.00044985,120]
[392152898,1761215442975,-150.0,0.00044985,14]
[392152899,1761215442985,-193.55021194,0.00044985,120]
[392152900,1761215442995,-733.72005888,0.00044986,120]
[392152901,1761215443004,-14737.3680457,0.00044986,3]
[392152902,1761215443015,-209.86972302,0.00044986,120]
[392152903,1761215443025,-432.31495266,0.00044986,120]
[392152904,1761215443034,-1333.36674797,0.00044986,120]
[392152905,1761215443043,-3795.95132774,0.00044986,120]
[392152906,1761215443053,-4647.0,0.00044986,120]
[392152907,1761215443063,-150.0,0.00044986,30]
[392152908,1761215443073,-150.0,0.00044986,30]
[392152909,1761215443082,-150.0,0.00044986,30]
[392152910,1761215443092,-150.0,0.00044986,30]
[392152911,1761215443102,-150.0,0.00044986,30]
[392152912,1761215443111,-150.0,0.00044986,30]
[392152913,1761215443120,-150.0,0.00044986,30]
[392152914,1761215443130,-150.0,0.00044986,30]
[392152915,1761215443140,-150.0,0.00044986,30]
[392152916,1761215443149,-150.0,0.00044986,30]
[392152917,1761215443162,-150.0,0.00044986,30]
[392152918,1761215443171,-150.0,0.00044986,30]
[392152919,1761215443182,-405.51552655,0.00044987,120]
[392152920,1761215443191,-209.86972302,0.00044987,120]
[392152921,1761215443203,-11497.90404488,0.00044988,120]
[392152922,1761215443212,-338.89750946,0.00044988,120]
[392152923,1761215443222,-260.91872561,0.00044988,120]
[392152924,1761215443234,-7368.68402287,0.00044988,3]
[392152925,1761215443243,-150.32,0.00044988,2]
[392152926,1761215443253,-405.51552655,0.00044988,120]
[392152927,1761215443262,-405.51552656,0.00044988,120]
[392152928,1761215443272,-313.03126371,0.00044988,120]
[392152929,1761215443281,-3795.95132774,0.00044988,120]
[392152930,1761215443290,-405.51552655,0.00044989,120]
[392152931,1761215443300,-2798.21975351,0.00044989,120]
[392152932,1761215443310,-282.73598014,0.00044989,120]
[392152933,1761215443320,-44212.1041372,0.00044989,3]
[392152934,1761215443330,-2100.0,0.00044989,30]
[392152935,1761215443340,-1055.99055336,0.00044989,60]
[392152936,1761215443349,-500.0,0.00044989,30]
[392152937,1761215443359,-557.0,0.00044989,120]
[392152938,1761215443369,-4066.77011352,0.00044989,120]
[392152939,1761215443378,-260.91872561,0.0004499,120]
[392152940,1761215443387,-313.03126371,0.0004499,120]
[392152941,1761215443505,-7368.68402287,0.0004499,3]
[392152942,1761215443515,-830.81545833,0.0004499,7]
[392152943,1761215443525,-811.0310531,0.0004499,120]
[392152944,1761215443535,-193.29043803,0.00044991,120]
[392152945,1761215443545,-282.73598014,0.00044992,120]
[392152946,1761215443554,-1303.15404757,0.00044992,120]
[392152947,1761215443563,-4066.77011352,0.00044992,120]
[392152948,1761215443573,-405.51552656,0.00044993,120]
[392152949,1761215443583,-284.01813289,0.00044993,120]
[392152950,1761215443593,-150.0,0.00044993,14]
[392152951,1761215443603,-2798.21975351,0.00044993,120]
[392152952,1761215443612,-193.55021194,0.00044994,120]
[392152953,1761215443622,-59072.5044584,0.00044994,2]
[392152954,1761215443631,-150.0,0.00044994,14]
[392152955,1761215443641,-2401.7897727,0.00044994,2]
[392152956,1761215443650,-2798.21975351,0.00044994,120]
[392152957,1761215443660,-1303.15404757,0.00044995,120]
[392152958,1761215443670,-405.51552656,0.00044995,120]
[392152959,1761215443679,-260.91872561,0.00044995,120]
[392152960,1761215443688,-9661.7113963,0.00044996,2]
[392152961,1761215443697,-22844.7415508,0.00044996,2]
[392152962,1761215443707,-313.03126371,0.00044996,120]
[392152963,1761215443717,-282.73598015,0.00044997,120]
[392152964,1761215443727,-349.19602115,0.00044997,120]
[392152965,1761215443737,-3795.95132774,0.00044998,120]
[392152966,1761215443746,-500.0,0.00044998,120]
[392152967,1761215443755,-8500.7817282,0.00044998,120]
[392152968,1761215443765,-500.0,0.00044998,120]
[392152969,1761215443775,-284.01813289,0.00044998,120]
[392152970,1761215443784,-1303.15404757,0.00044998,120]
[392152971,1761215443794,-282.73598014,0.00044998,120]
[392152972,1761215443803,-193.55021194,0.00044998,120]
[392152973,1761215443813,-338.89750946,0.00044999,120]
[392152974,1761215443823,-311.7843581,0.00044999,30]
[392152975,1761215443832,-1664.32830478,0.00044999,60]
[392152976,1761215443841,-5800.0,0.00044999,14]
[392152977,1761215443851,-1001.7878,0.00044999,2]
[392152978,1761215443860,-500.0,0.00044999,120]
[392152979,1761215443870,-500.0,0.00044999,120]
[392152980,1761215443880,-500.0,0.00044999,120]
[392152981,1761215443889,-184.2059386,0.00044999,120]
[392152982,1761215443899,-1055.99055337,0.00044999,60]
[392152983,1761215443908,-500.0,0.00044999,30]
[392152984,1761215443918,-500.0,0.00044999,30]
[392152985,1761215443927,-500.0,0.00044999,30]
[392152986,1761215443936,-500.0,0.00044999,30]
[392152987,1761215443946,-500.0,0.00044999,30]
[392152988,1761215443955,-152.84304592,0.00044999,30]
[392152989,1761215443964,-576.28074217,0.00044999,120]
[392152990,1761215443974,-193.55021194,0.00044999,120]
[392152991,1761215443984,-999.0,0.00044999,120]
[392152992,1761215443993,-2100.0,0.00044999,30]
[392152993,1761215444003,-414.0,0.00044999,120]
[392152994,1761215444012,-300.0,0.00044999,120]
[392152995,1761215444023,-500.0,0.00044999,120]
[392152996,1761215444032,-264.28316117,0.00044999,120]
[392152997,1761215444041,-429.318,0.00044999,120]
[392152998,1761215444051,-500.0,0.00044999,120]
[392152999,1761215444060,-445.202766,0.00044999,120]
[392153000,1761215444070,-500.0,0.00044999,120]
[392153001,1761215444082,-461.67526834,0.00044999,120]
[392153002,1761215444092,-500.0,0.00044999,120]
[392153003,1761215444102,-500.0,0.00044999,120]
[392153004,1761215444111,-478.75725327,0.00044999,120]
[392153005,1761215444121,-500.0,0.00044999,120]
[392153006,1761215444130,-500.0,0.00044999,120]
[392153007,1761215444139,-500.0,0.00044999,120]
[392153008,1761215444149,-496.47127164,0.00044999,120]
[392153009,1761215444162,-500.0,0.00044999,120]
[392153010,1761215444171,-500.0,0.00044999,120]
[392153011,1761215444181,-500.0,0.00044999,120]
[392153012,1761215444191,-514.84070869,0.00044999,120]
[392153013,1761215444201,-250.0,0.00044999,120]
[392153014,1761215444211,-500.0,0.00044999,120]
[392153015,1761215444220,-500.0,0.00044999,120]
[392153016,1761215444232,-500.0,0.00044999,120]
[392153017,1761215444242,-533.88981491,0.00044999,120]
[392153018,1761215444251,-500.0,0.00044999,120]
[392153019,1761215444260,-250.0,0.00044999,120]
[392153020,1761215444270,-500.0,0.00044999,120]
[392153021,1761215444279,-500.0,0.00044999,120]
[392153022,1761215444288,-553.64373807,0.00044999,120]
[392153023,1761215444298,-500.0,0.00044999,120]
[392153024,1761215444307,-250.0,0.00044999,120]
[392153025,1761215444316,-500.0,0.00044999,120]
[392153026,1761215444326,-500.0,0.00044999,120]
[392153027,1761215444336,-574.12855637,0.00044999,120]
[392153028,1761215444347,-500.0,0.00044999,120]
[392153029,1761215444359,-250.0,0.00044999,120]
[392153030,1761215444368,-500.0,0.00044999,120]
[392153031,1761215444378,-595.37131296,0.00044999,120]
[392153032,1761215444388,-500.0,0.00044999,120]
[392153033,1761215444398,-500.0,0.00044999,120]
[392153034,1761215444408,-250.0,0.00044999,120]
[392153035,1761215444418,-500.0,0.00044999,120]
[392153036,1761215444428,-617.40005154,0.00044999,120]
[392153037,1761215444437,-500.0,0.00044999,120]
[392153038,1761215444447,-250.0,0.00044999,120]
[392153039,1761215444456,-500.0,0.00044999,120]
[392153040,1761215444466,-500.0,0.00044999,120]
[392153041,1761215444475,-640.24385345,0.00044999,120]
[392153042,1761215444484,-500.0,0.00044999,120]
[392153043,1761215444494,-500.0,0.00044999,120]
[392153044,1761215444503,-250.0,0.00044999,120]
[392153045,1761215444513,-500.0,0.00044999,120]
[392153046,1761215444522,-663.93287602,0.00044999,120]
[392153047,1761215444531,-367.30261624,0.00044999,14]
[392153048,1761215444540,-500.0,0.00044999,120]
[392153049,1761215444550,-250.0,0.00044999,120]
[392153050,1761215444560,-500.0,0.00044999,120]
[392153051,1761215444570,-500.0,0.00044999,120]
[392153052,1761215444580,-500.0,0.00044999,120]